[Event "17th Memorial Lezcano Montalvo 2025"]
[Site "Gran Canaria"]
[Date "2025.04.13"]
[Round "2.44"]
[White "Rodriguez Trujillo, Cristian"]
[Black "Sanchez Montesdeoca, Isaac"]
[Result "0-1"]
[Annotator "NA"]
[ECO "B50"]
[WhiteElo "1562"]
[BlackElo "1807"]
[PlyCount "156"]
[EventDate "2025.04.13"]
[EventType "swiss"]
[EventCountry "ESP"]
[SourceTitle "playchess.com"]
[Source "ChessBase"]
[SourceQuality "1"]
[TimeControl "5400+30"]

1. e4 {[%emt 0:00:12]} c5 {[%emt 0:00:06]} 2. Nf3 {[%emt 0:00:05]} d6 {[%emt 0:00:04]} 3. c3 {[%emt 0:00:29]} Nf6 {[%emt 0:06:31]} 4. Be2 {[%emt 0:01:25]} g6 {[%emt 0:00:08]} 5. h3 {[%emt 0:00:32]} Bg7 {[%emt 0:00:08]} 6. O-O {[%emt 0:00:12]} O-O {[%emt 0:00:07]} 7. d3 {[%emt 0:00:14]} Nc6 {[%emt 0:01:41]} 8. Be3 {[%emt 0:02:34]} Qc7 {[%emt 0:05:17]} 9. Qc1 {[%emt 0:06:36]} Bd7 {[%emt 0:03:19]} 10. Bh6 {[%emt 0:01:28]} Rfc8 {[%emt 0:01:01]} 11. Bxg7 {[%emt 0:00:25]} Kxg7 {[%emt 0:00:03]} 12. Nbd2 {[%emt 0:03:39]} a6 {[%emt 0:00:19]} 13. a4 {[%emt 0:03:05]} b5 {[%emt 0:00:27]} 14. axb5 {[%emt 0:04:58]} axb5 {[%emt 0:00:06]} 15. Rxa8 {[%emt 0:00:12]} Rxa8 {[%emt 0:00:08]} 16. d4 {[%emt 0:00:07]} c4 {[%emt 0:00:08]} 17. e5 {[%emt 0:02:18]} dxe5 {[%emt 0:00:35]} 18. dxe5 {[%emt 0:01:24]} Nxe5 {[%emt 0:00:19]} 19. Nd4 {[%emt 0:00:09]} Qc5 {[%emt 0:07:21]} 20. b3 {[%emt 0:04:30]} Ra2 {[%emt 0:02:44]} 21. b4 {[%emt 0:03:58]} Qa7 {[%emt 0:02:42]} 22. N2f3 {[%emt 0:02:46]} Nxf3+ {[%emt 0:05:30]} 23. Bxf3 {[%emt 0:00:33]} e5 {[%emt 0:00:30]} 24. Nc6 {[%emt 0:02:32]} Bxc6 {[%emt 0:01:23]} 25. Bxc6 {[%emt 0:00:06]} Qb6 {[%emt 0:00:55]} 26. Bf3 {[%emt 0:03:47]} Qa7 {[%emt 0:02:15]} 27. Qe1 {[%emt 0:04:05]} Qb8 {[%emt 0:03:30]} 28. Qe3 {[%emt 0:02:15]} Ra3 {[%emt 0:01:24]} 29. Re1 {[%emt 0:04:34]} e4 {[%emt 0:01:49]} 30. Bxe4 {[%emt 0:00:41]} Qe5 {[%emt 0:00:23]} 31. Bc6 {[%emt 0:08:50]} Qxc3 {[%emt 0:01:06]} 32. Qxc3 {[%emt 0:01:10]} Rxc3 {[%emt 0:00:08]} 33. Bxb5 {[%emt 0:00:04]} Rc2 {[%emt 0:01:50]} 34. Bc6 {[%emt 0:10:24]} c3 {[%emt 0:00:47]} 35. b5 {[%emt 0:00:37]} Rb2 {[%emt 0:00:40]} 36. Rc1 {[%emt 0:00:10]} c2 {[%emt 0:01:35]} 37. Kh2 {[%emt 0:00:14]} Ng8 {[%emt 0:01:51]} 38. Be4 {[%emt 0:05:14]} Rxb5 {[%emt 0:01:36]} 39. Rxc2 {[%emt 0:00:19]} Ne7 {[%emt 0:00:25]} 40. g4 {[%emt 0:02:02]} Rb4 {[%emt 0:00:37]} 41. f3 {[%emt 0:00:49]} Rd4 {[%emt 0:00:27]} 42. Rc7 {[%emt 0:02:47]} Kf6 {[%emt 0:00:20]} 43. Rb7 {[%emt 0:03:44]} h6 {[%emt 0:00:20]} 44. Kg3 {[%emt 0:01:48]} Nc8 {[%emt 0:01:32]} 45. Rb8 {[%emt 0:02:41]} Nd6 {[%emt 0:00:27]} 46. Bb1 {[%emt 0:00:40]} g5 {[%emt 0:01:08]} 47. Rh8 {[%emt 0:00:28]} Rd1 {[%emt 0:03:32]} 48. Rxh6+ {[%emt 0:03:45]} Ke7 {[%emt 0:02:21]} 49. Bf5 {[%emt 0:02:58]} Ra1 {[%emt 0:01:15]} 50. Rh5 {[%emt 0:02:52]} Kf6 {[%emt 0:01:05]} 51. Rh6+ {[%emt 0:00:23]} Ke5 {[%emt 0:00:13]} 52. h4 {[%emt 0:01:04]} gxh4+ {[%emt 0:06:07]} 53. Rxh4 {[%emt 0:01:50]} Ra3 {[%emt 0:01:59]} 54. Rh5 {[%emt 0:01:00]} Kf6 {[%emt 0:00:41]} 55. Rh6+ {[%emt 0:00:41]} Ke5 {[%emt 0:01:18]} 56. Rh5 {[%emt 0:00:15]} Kf6 {[%emt 0:00:15]} 57. Bc2 {[%emt 0:00:53]} Rc3 {[%emt 0:00:21]} 58. Rh6+ {[%emt 0:00:13]} Ke7 {[%emt 0:00:17]} 59. Bh7 {[%emt 0:00:15]} Ra3 {[%emt 0:01:03]} 60. g5 {[%emt 0:00:12]} Rc3 {[%emt 0:01:41]} 61. Rh4 {[%emt 0:00:27]} Rc5 {[%emt 0:01:26]} 62. Kg4 {[%emt 0:00:35]} Ne8 {[%emt 0:00:55]} 63. Be4 {[%emt 0:00:27]} Rc1 {[%emt 0:01:28]} 64. Kf4 {[%emt 0:00:18]} Ng7 {[%emt 0:02:06]} 65. Ke5 {[%emt 0:01:41]} Rc5+ {[%emt 0:00:32]} 66. Bd5 {[%emt 0:00:29]} Ne6 {[%emt 0:01:31]} 67. f4 {[%emt 0:00:30]} Nc7 {[%emt 0:00:20]} 68. Ke4 {[%emt 0:01:05]} Rxd5 {[%emt 0:00:20]} 69. f5 {[%emt 0:00:15]} Ra5 {[%emt 0:01:11]} 70. Rh7 {[%emt 0:00:26]} Ne8 {[%emt 0:00:31]} 71. g6 {[%emt 0:00:44]} Nf6+ {[%emt 0:00:13]} 72. Kf4 {[%emt 0:00:11]} Ra4+ {[%emt 0:00:22]} 73. Kg5 {[%emt 0:00:22]} Rg4+ {[%emt 0:00:09]} 74. Kh6 {[%emt 0:00:30]} Nxh7 {[%emt 0:13:40]} 75. Kxh7 {[%emt 0:00:09]} fxg6 {[%emt 0:00:39]} 76. fxg6 {[%emt 0:00:18]} Kf6 {[%emt 0:00:06]} 77. g7 {[%emt 0:01:20]} Rxg7+ {[%emt 0:00:09]} 78. Kh8 {[%emt 0:00:01]} Ra7 {[%emt 0:00:32]} 0-1

[Event "17th Memorial Lezcano Montalvo 2025"]
[Site "Gran Canaria"]
[Date "2025.04.13"]
[Round "2.45"]
[White "Juan Miguel, Javier"]
[Black "Angulo Diaz, Dario"]
[Result "1-0"]
[Annotator "NA"]
[ECO "D05"]
[WhiteElo "1803"]
[BlackElo "1568"]
[PlyCount "93"]
[EventDate "2025.04.13"]
[EventType "swiss"]
[EventCountry "ESP"]
[SourceTitle "playchess.com"]
[Source "ChessBase"]
[SourceQuality "1"]
[TimeControl "5400+30"]

1. d4 {[%emt 0:00:05]} Nf6 {[%emt 0:00:31]} 2. e3 {[%emt 0:00:13]} e6 {[%emt 0:00:34]} 3. Nf3 {[%emt 0:00:22]} d5 {[%emt 0:00:36]} 4. Bd3 {[%emt 0:00:11]} Nc6 {[%emt 0:00:32]} 5. b3 {[%emt 0:00:40]} Bd6 {[%emt 0:01:37]} 6. Bb2 {[%emt 0:00:28]} Qe7 {[%emt 0:01:15]} 7. Ne5 {[%emt 0:01:09]} Bd7 {[%emt 0:07:41]} 8. Nd2 {[%emt 0:01:35]} Nb4 {[%emt 0:07:09]} 9. Be2 {[%emt 0:03:46]} a5 {[%emt 0:04:47]} 10. a3 {[%emt 0:01:18]} Na6 {[%emt 0:00:43]} 11. c4 {[%emt 0:04:01]} c5 {[%emt 0:00:21]} 12. Bd3 {[%emt 0:02:19]} Nc7 {[%emt 0:01:39]} 13. Qe2 {[%emt 0:02:48]} Bc6 {[%emt 0:07:32]} 14. f4 {[%emt 0:04:34]} Nd7 {[%emt 0:05:49]} 15. O-O {[%emt 0:02:36]} a4 {[%emt 0:03:24]} 16. b4 {[%emt 0:02:29]} cxb4 {[%emt 0:00:54]} 17. Nxd7 {[%emt 0:02:44]} bxa3 {[%emt 0:01:42]} 18. Bc1 {[%emt 0:00:50]} dxc4 {[%emt 0:03:27]} 19. Nxc4 {[%emt 0:00:12]} Qxd7 {[%emt 0:00:21]} 20. Nb6 {[%emt 0:00:54]} Qd8 {[%emt 0:05:37]} 21. Nxa8 {[%emt 0:00:45]} Qxa8 {[%emt 0:00:11]} 22. Bxa3 {[%emt 0:00:22]} Bxa3 {[%emt 0:01:32]} 23. Rxa3 {[%emt 0:00:19]} b5 {[%emt 0:05:13]} 24. Rb1 {[%emt 0:01:26]} Ke7 {[%emt 0:02:50]} 25. Qc2 {[%emt 0:02:04]} Kd7 {[%emt 0:01:50]} 26. f5 {[%emt 0:07:15]} b4 {[%emt 0:04:40]} 27. Rxb4 {[%emt 0:03:22]} Nd5 {[%emt 0:00:12]} 28. Rbxa4 {[%emt 0:01:15]} Bxa4 {[%emt 0:02:26]} 29. Rxa4 {[%emt 0:00:06]} Qb7 {[%emt 0:01:09]} 30. Qc5 {[%emt 0:00:36]} Ra8 {[%emt 0:05:48]} 31. Bb5+ {[%emt 0:00:18]} Kd8 {[%emt 0:00:57]} 32. Qd6+ {[%emt 0:00:29]} Kc8 {[%emt 0:00:47]} 33. Bd7+ {[%emt 0:00:26]} Qxd7 {[%emt 0:03:03]} 34. Rxa8+ {[%emt 0:00:07]} Kb7 {[%emt 0:01:00]} 35. Qxd7+ {[%emt 0:00:52]} Kxa8 {[%emt 0:00:00]} 36. fxe6 {[%emt 0:55:34]} fxe6 {[%emt 0:00:08]} 37. Qxe6 {[%emt 0:00:00]} Nf6 {[%emt 0:00:33]} 38. d5 {[%emt 0:00:00]} Kb8 {[%emt 0:00:20]} 39. d6 {[%emt 0:00:00]} Kb7 {[%emt 0:00:55]} 40. Qe7+ {[%emt 0:00:00]} Kc6 {[%emt 0:00:14]} 41. Qc7+ {[%emt 0:00:00]} Kd5 {[%emt 0:21:01]} 42. d7 {[%emt 0:00:00]} Nxd7 {[%emt 0:00:00]} 43. Qxd7+ {[%emt 0:00:00]} Ke4 {[%emt 0:00:00]} 44. Qd4+ {[%emt 0:00:00]} Kf5 {[%emt 0:00:00]} 45. e4+ {[%emt 0:00:00]} Kg5 {[%emt 0:00:00]} 46. Qxg7+ {[%emt 0:05:00]} Kh5 {[%emt 0:02:30]} 47. h3 {[%emt 0:00:00]} 1-0

[Event "17th Memorial Lezcano Montalvo 2025"]
[Site "Gran Canaria"]
[Date "2025.04.13"]
[Round "2.46"]
[White "Monteiro Rodrigues, Carlos"]
[Black "Oramas Medina, Miguel"]
[Result "0-1"]
[Annotator "NA"]
[ECO "C51"]
[WhiteElo "1549"]
[BlackElo "1796"]
[PlyCount "55"]
[EventDate "2025.04.13"]
[EventType "swiss"]
[EventCountry "ESP"]
[SourceTitle "playchess.com"]
[Source "ChessBase"]
[SourceQuality "1"]
[TimeControl "5400+30"]

1. e4 {[%emt 1:31:00]} e5 2. Nf3 {[%emt 0:00:00]} Nc6 {[%emt 0:00:20]} 3. Bc4 {[%emt 0:00:00]} Bc5 {[%emt 0:00:10]} 4. b4 {[%emt 0:00:00]} Bxb4 {[%emt 0:00:04]} 5. c3 {[%emt 0:00:00]} Be7 {[%emt 0:00:06]} 6. d4 {[%emt 0:00:00]} Na5 {[%emt 0:00:04]} 7. Be2 {[%emt 0:00:00]} d5 {[%emt 0:12:22]} 8. Nxe5 {[%emt 0:00:00]} dxe4 {[%emt 0:02:49]} 9. O-O {[%emt 0:00:00]} Nf6 {[%emt 0:02:11]} 10. f4 {[%emt 0:00:00]} O-O {[%emt 0:06:13]} 11. f5 {[%emt 0:00:00]} b6 {[%emt 0:07:19]} 12. Qe1 {[%emt 0:00:00]} c5 {[%emt 0:04:55]} 13. Be3 {[%emt 0:00:00]} Qc7 {[%emt 0:03:23]} 14. Qg3 {[%emt 0:00:00]} Nd7 {[%emt 0:03:54]} 15. Bf4 {[%emt 0:00:00]} Qd8 {[%emt 0:02:25]} 16. Nd2 {[%emt 0:00:00]} Bb7 {[%emt 0:05:17]} 17. Rad1 {[%emt 0:00:00]} Re8 {[%emt 0:06:27]} 18. Bh5 {[%emt 0:00:00]} Nxe5 {[%emt 0:03:02]} 19. Bxe5 {[%emt 0:00:00]} Bf6 {[%emt 0:00:28]} 20. Rf4 {[%emt 0:00:00]} cxd4 {[%emt 0:08:01]} 21. Bxf6 {[%emt 0:00:00]} Qxf6 {[%emt 0:00:08]} 22. cxd4 {[%emt 0:00:00]} Qxd4+ {[%emt 0:00:16]} 23. Kh1 {[%emt 0:00:00]} Qf6 {[%emt 0:01:03]} 24. Nf1 {[%emt 0:00:00]} Rad8 {[%emt 0:04:16]} 25. Ne3 {[%emt 0:00:00]} Rxd1+ {[%emt 0:00:46]} 26. Bxd1 {[%emt 0:00:00]} Rd8 {[%emt 0:01:29]} 27. Rg4 {[%emt 0:00:00]} Nc4 {[%emt 0:26:32]} 28. Bb3 {[%emt 0:00:00]} 0-1

[Event "17th Memorial Lezcano Montalvo 2025"]
[Site "Gran Canaria"]
[Date "2025.04.13"]
[Round "2.47"]
[White "Reinoso Andre, Lazaro Javier"]
[Black "Vallejo Aleman, Ricardo Manuel"]
[Result "1-0"]
[Annotator "NA"]
[ECO "D02"]
[WhiteElo "1796"]
[BlackElo "1554"]
[PlyCount "101"]
[EventDate "2025.04.13"]
[EventType "swiss"]
[EventCountry "ESP"]
[SourceTitle "playchess.com"]
[Source "ChessBase"]
[SourceQuality "1"]
[TimeControl "5400+30"]

1. d4 {[%emt 0:00:03]} d5 {[%emt 0:00:15]} 2. Nf3 {[%emt 0:00:09]} Nc6 {[%emt 0:00:36]} 3. e3 {[%emt 0:00:13]} a6 {[%emt 0:00:00]} 4. c3 {[%emt 0:00:17]} Bf5 {[%emt 0:00:08]} 5. Qb3 {[%emt 0:00:34]} b6 {[%emt 0:02:16]} 6. Ne5 {[%emt 0:02:23]} Na5 {[%emt 0:02:24]} 7. Qa4+ {[%emt 0:01:14]} c6 {[%emt 0:04:51]} 8. b4 {[%emt 0:00:08]} b5 {[%emt 0:01:12]} 9. Qxa5 {[%emt 0:00:14]} Qxa5 {[%emt 0:00:24]} 10. bxa5 {[%emt 0:00:01]} Rc8 {[%emt 0:00:35]} 11. Bd3 {[%emt 0:00:30]} Be4 {[%emt 0:01:24]} 12. Bxe4 {[%emt 0:00:13]} dxe4 {[%emt 0:00:11]} 13. Nd2 {[%emt 0:00:01]} f6 {[%emt 0:01:21]} 14. Nxc6 {[%emt 0:01:05]} Rxc6 {[%emt 0:00:15]} 15. Nxe4 {[%emt 0:00:02]} f5 {[%emt 0:00:40]} 16. Nc5 {[%emt 0:00:06]} e6 {[%emt 0:01:59]} 17. Ba3 {[%emt 0:00:09]} Nf6 {[%emt 0:00:30]} 18. Bb4 {[%emt 0:00:37]} Nd5 {[%emt 0:00:18]} 19. O-O {[%emt 0:00:52]} Bd6 {[%emt 0:01:48]} 20. a4 {[%emt 0:00:43]} e5 {[%emt 0:01:03]} 21. axb5 {[%emt 0:00:12]} axb5 {[%emt 0:00:03]} 22. a6 {[%emt 0:00:12]} O-O {[%emt 0:00:50]} 23. a7 {[%emt 0:00:52]} Nb6 {[%emt 0:00:36]} 24. Nd7 {[%emt 0:03:12]} Ra8 {[%emt 0:03:17]} 25. Ra6 {[%emt 0:01:14]} Bc7 {[%emt 0:00:59]} 26. d5 {[%emt 0:00:42]} Rh6 {[%emt 0:00:42]} 27. Nxb6 {[%emt 0:00:45]} Bxb6 {[%emt 0:00:36]} 28. d6 {[%emt 0:00:19]} Bc7 {[%emt 0:04:19]} 29. Rfa1 {[%emt 0:00:38]} Bd8 {[%emt 0:02:39]} 30. Ba5 {[%emt 0:00:41]} Be7 {[%emt 0:03:28]} 31. Bc7 {[%emt 0:00:16]} Bf8 {[%emt 0:01:30]} 32. d7 {[%emt 0:01:10]} Rxa6 {[%emt 0:00:59]} 33. Rxa6 {[%emt 0:00:02]} Be7 {[%emt 0:00:15]} 34. d8=Q+ {[%emt 1:27:41]} Bxd8 {[%emt 0:00:26]} 35. Bxd8 {[%emt 0:00:00]} Kf7 {[%emt 0:00:19]} 36. Bc7 {[%emt 0:00:00]} Ke7 {[%emt 0:00:10]} 37. Bxe5 {[%emt 0:00:00]} g6 {[%emt 0:00:49]} 38. Bb8 {[%emt 0:00:00]} Kd7 {[%emt 0:00:12]} 39. Rb6 {[%emt 0:00:00]} Kc8 {[%emt 0:01:14]} 40. Rxb5 {[%emt 0:00:00]} Kd7 {[%emt 0:00:09]} 41. Rb7+ {[%emt 0:00:00]} Kc8 {[%emt 0:00:52]} 42. Rxh7 {[%emt 0:00:00]} Kd8 {[%emt 0:00:10]} 43. c4 {[%emt 0:00:00]} g5 {[%emt 0:00:17]} 44. c5 {[%emt 0:00:00]} Ke8 {[%emt 0:00:18]} 45. c6 {[%emt 0:00:00]} Kd8 {[%emt 0:01:16]} 46. Rh8+ {[%emt 0:00:00]} Ke7 {[%emt 0:00:24]} 47. c7 {[%emt 0:00:00]} f4 {[%emt 0:00:31]} 48. c8=Q {[%emt 0:07:00]} fxe3 {[%emt 1:05:00]} 49. Rh6 {[%emt 0:00:00]} Rxb8 {[%emt 0:00:00]} 50. Qc7+ {[%emt 0:00:00]} Kf8 {[%emt 0:00:00]} 51. Rh8# {[%emt 0:00:00]} 1-0

[Event "17th Memorial Lezcano Montalvo 2025"]
[Site "Gran Canaria"]
[Date "2025.04.13"]
[Round "2.48"]
[White "Martin Gonzalez, Lucas"]
[Black "Basualdo De Ornelas, Jorge"]
[Result "0-1"]
[Annotator "NA"]
[ECO "C45"]
[WhiteElo "1547"]
[BlackElo "1794"]
[PlyCount "58"]
[EventDate "2025.04.13"]
[EventType "swiss"]
[EventCountry "ESP"]
[SourceTitle "playchess.com"]
[Source "ChessBase"]
[SourceQuality "1"]
[TimeControl "5400+30"]

1. e4 {[%emt 0:00:13]} e5 {[%emt 0:00:04]} 2. Nf3 {[%emt 0:00:16]} Nc6 {[%emt 0:00:04]} 3. d4 {[%emt 0:00:48]} exd4 {[%emt 0:00:04]} 4. Nxd4 {[%emt 0:00:55]} Nf6 {[%emt 0:00:06]} 5. Nxc6 {[%emt 0:01:17]} bxc6 {[%emt 0:00:06]} 6. Bd3 {[%emt 0:02:04]} d5 {[%emt 0:00:52]} 7. exd5 {[%emt 0:06:10]} cxd5 {[%emt 0:00:12]} 8. O-O {[%emt 0:00:51]} Be7 {[%emt 0:00:16]} 9. Bf4 {[%emt 0:03:15]} O-O {[%emt 0:00:17]} 10. Nd2 {[%emt 0:03:29]} Bb7 {[%emt 0:13:33]} 11. Qf3 {[%emt 0:10:53]} c5 {[%emt 0:05:28]} 12. Qg3 {[%emt 0:05:39]} Nh5 {[%emt 0:06:23]} 13. Qh3 {[%emt 0:02:20]} g6 {[%emt 0:24:34]} 14. Bh6 {[%emt 0:04:54]} Re8 {[%emt 0:45:31]} 15. f4 {[%emt 0:01:30]} c4 {[%emt 0:00:00]} 16. Be2 {[%emt 0:01:44]} Bc5+ {[%emt 0:00:00]} 17. Kh1 {[%emt 0:00:59]} Rxe2 {[%emt 0:00:00]} 18. f5 {[%emt 0:00:45]} d4 {[%emt 0:00:00]} 19. fxg6 {[%emt 0:01:50]} Bxg2+ {[%emt 0:00:00]} 20. Qxg2 {[%emt 0:00:20]} Rxg2 {[%emt 0:00:00]} 21. gxf7+ {[%emt 0:00:12]} Kh8 {[%emt 0:00:00]} 22. Kxg2 {[%emt 0:00:13]} Qd5+ {[%emt 0:00:00]} 23. Kh3 {[%emt 0:00:33]} Qe6+ {[%emt 0:00:00]} 24. Kh4 {[%emt 0:00:16]} Qxh6 {[%emt 0:00:00]} 25. f8=Q+ {[%emt 0:51:34]} Rxf8 {[%emt 0:00:00]} 26. Rxf8+ {[%emt 0:00:00]} Bxf8 {[%emt 0:00:00]} 27. Nxc4 {[%emt 0:00:00]} Be7+ {[%emt 0:00:00]} 28. Kg4 {[%emt 0:00:00]} Qg5+ {[%emt 0:00:00]} 29. Kh3 {[%emt 0:00:00]} Nf4# {[%emt 0:00:00]} 0-1

[Event "17th Memorial Lezcano Montalvo 2025"]
[Site "Gran Canaria"]
[Date "2025.04.13"]
[Round "2.49"]
[White "Sanchez Ramirez, Gustavo"]
[Black "Gavilan Ledezma, Kevin"]
[Result "1-0"]
[Annotator "NA"]
[ECO "A30"]
[WhiteElo "1780"]
[BlackElo "1548"]
[PlyCount "91"]
[EventDate "2025.04.13"]
[EventType "swiss"]
[EventCountry "ESP"]
[SourceTitle "playchess.com"]
[Source "ChessBase"]
[SourceQuality "1"]
[TimeControl "5400+30"]

1. c4 {[%emt 0:00:10]} c5 {[%emt 0:00:44]} 2. g3 {[%emt 0:00:24]} Nf6 {[%emt 0:01:05]} 3. Bg2 {[%emt 0:00:09]} e6 {[%emt 0:01:09]} 4. e4 {[%emt 0:01:59]} Nc6 {[%emt 0:01:45]} 5. Ne2 {[%emt 0:00:37]} d5 {[%emt 0:02:03]} 6. cxd5 {[%emt 0:01:49]} exd5 {[%emt 0:00:33]} 7. exd5 {[%emt 0:00:19]} Nxd5 {[%emt 0:00:32]} 8. Nbc3 {[%emt 0:00:30]} Be6 {[%emt 0:00:55]} 9. O-O {[%emt 0:00:14]} Be7 {[%emt 0:00:34]} 10. d4 {[%emt 0:04:43]} cxd4 {[%emt 0:02:49]} 11. Nxd4 {[%emt 0:00:45]} Nxd4 {[%emt 0:00:25]} 12. Qxd4 {[%emt 0:00:22]} Nxc3 {[%emt 0:01:01]} 13. Qxc3 {[%emt 0:03:01]} Bf6 {[%emt 0:01:04]} 14. Qf3 {[%emt 0:00:48]} Qb6 {[%emt 0:05:46]} 15. Qxb7 {[%emt 0:01:53]} Qxb7 {[%emt 0:00:53]} 16. Bxb7 {[%emt 0:00:04]} Rb8 {[%emt 0:00:04]} 17. Bc6+ {[%emt 0:00:25]} Ke7 {[%emt 0:00:01]} 18. Be3 {[%emt 0:00:55]} Bxb2 {[%emt 0:00:26]} 19. Bc5+ {[%emt 0:03:47]} Kf6 {[%emt 0:01:05]} 20. Rab1 {[%emt 0:01:14]} Bxa2 {[%emt 0:02:26]} 21. Rxb2 {[%emt 0:00:21]} Rxb2 {[%emt 0:03:43]} 22. Bd4+ {[%emt 0:01:58]} Kg6 {[%emt 0:00:54]} 23. Bxb2 {[%emt 0:00:31]} Rb8 {[%emt 0:00:39]} 24. Be4+ {[%emt 0:01:37]} f5 {[%emt 0:00:08]} 25. Bxf5+ {[%emt 0:05:44]} Kxf5 {[%emt 0:01:32]} 26. Bxg7 {[%emt 0:00:06]} Rb1 {[%emt 0:00:18]} 27. Rxb1 {[%emt 0:00:30]} Bxb1 {[%emt 0:00:09]} 28. f3 {[%emt 0:00:22]} a5 {[%emt 0:00:21]} 29. Kf2 {[%emt 0:00:12]} a4 {[%emt 0:00:06]} 30. Ke3 {[%emt 0:00:14]} a3 {[%emt 0:00:12]} 31. h4 {[%emt 0:00:43]} a2 {[%emt 0:00:15]} 32. g4+ {[%emt 0:00:35]} Ke6 {[%emt 0:00:30]} 33. Kf4 {[%emt 0:00:58]} Bd3 {[%emt 0:00:20]} 34. Kg5 {[%emt 0:01:36]} Kf7 {[%emt 0:00:15]} 35. Bc3 {[%emt 0:00:53]} Kg8 {[%emt 0:01:42]} 36. f4 {[%emt 0:00:08]} Bg6 {[%emt 0:00:56]} 37. Kf6 {[%emt 0:01:25]} Bd3 {[%emt 0:00:40]} 38. h5 {[%emt 0:00:14]} Be2 {[%emt 0:00:09]} 39. Kf5 {[%emt 0:00:53]} Kf7 {[%emt 0:00:37]} 40. h6 {[%emt 0:00:43]} Ke7 {[%emt 0:00:39]} 41. g5 {[%emt 0:00:04]} Bd3+ {[%emt 0:00:36]} 42. Ke5 {[%emt 0:00:04]} Bg6 {[%emt 0:00:42]} 43. f5 {[%emt 0:00:09]} Bh5 {[%emt 0:00:10]} 44. g6 {[%emt 0:01:11]} Bxg6 {[%emt 0:01:51]} 45. fxg6 {[%emt 0:00:04]} hxg6 {[%emt 0:00:37]} 46. h7 {[%emt 0:00:03]} 1-0

[Event "17th Memorial Lezcano Montalvo 2025"]
[Site "Gran Canaria"]
[Date "2025.04.13"]
[Round "2.50"]
[White "Bernal Zelaya, Pedro Gabriel"]
[Black "Velasquez Vargas, Sebastian"]
[Result "0-1"]
[Annotator "NA"]
[ECO "C54"]
[WhiteElo "1538"]
[BlackElo "1777"]
[PlyCount "42"]
[EventDate "2025.04.13"]
[EventType "swiss"]
[EventCountry "ESP"]
[SourceTitle "playchess.com"]
[Source "ChessBase"]
[SourceQuality "1"]
[TimeControl "5400+30"]

1. e4 {[%emt 0:03:40]} e5 {[%emt 0:00:15]} 2. Nf3 {[%emt 0:00:15]} Nc6 {[%emt 0:00:33]} 3. Bc4 {[%emt 0:00:15]} Bc5 {[%emt 0:00:10]} 4. c3 {[%emt 0:00:23]} Nf6 {[%emt 0:00:16]} 5. d3 {[%emt 0:00:07]} d6 {[%emt 0:00:39]} 6. Bb3 {[%emt 0:01:00]} Ne7 {[%emt 0:01:02]} 7. O-O {[%emt 0:00:27]} Ng6 {[%emt 0:00:31]} 8. Re1 {[%emt 0:02:55]} O-O {[%emt 0:00:25]} 9. d4 {[%emt 0:01:21]} Bb6 {[%emt 0:00:41]} 10. Bg5 {[%emt 0:01:09]} h6 {[%emt 0:00:49]} 11. Bh4 {[%emt 0:04:10]} Bg4 {[%emt 0:01:22]} 12. Bg3 {[%emt 0:00:07]} Nh5 {[%emt 0:05:15]} 13. h3 {[%emt 0:03:52]} Bxf3 {[%emt 0:02:32]} 14. gxf3 {[%emt 0:00:10]} Ngf4 {[%emt 0:01:26]} 15. Kh2 {[%emt 0:00:42]} Qd7 {[%emt 0:00:29]} 16. Bxf4 {[%emt 0:09:18]} Nxf4 {[%emt 0:00:50]} 17. Kg1 {[%emt 0:01:30]} Qxh3 {[%emt 0:01:37]} 18. Bxf7+ {[%emt 1:08:09]} Rxf7 {[%emt 0:00:50]} 19. Qd3 {[%emt 0:00:00]} Nxd3 {[%emt 0:00:18]} 20. Nd2 {[%emt 0:00:00]} Nf4 {[%emt 0:00:16]} 21. Re2 {[%emt 0:00:00]} Nxe2# {[%emt 1:20:44]} 0-1

[Event "17th Memorial Lezcano Montalvo 2025"]
[Site "Gran Canaria"]
[Date "2025.04.13"]
[Round "2.51"]
[White "Rossello Padron, Carlos"]
[Black "Leandro Tejera, Damian"]
[Result "1-0"]
[Annotator "NA"]
[ECO "D05"]
[WhiteElo "1776"]
[BlackElo "1546"]
[PlyCount "71"]
[EventDate "2025.04.13"]
[EventType "swiss"]
[EventCountry "ESP"]
[SourceTitle "playchess.com"]
[Source "ChessBase"]
[SourceQuality "1"]
[TimeControl "5400+30"]

1. b3 {[%emt 0:00:08]} e6 {[%emt 0:00:10]} 2. Bb2 {[%emt 0:00:18]} d5 {[%emt 0:00:06]} 3. e3 {[%emt 0:00:26]} Nf6 {[%emt 0:00:16]} 4. d4 {[%emt 0:00:33]} c5 {[%emt 0:00:07]} 5. Nf3 {[%emt 0:00:36]} Nc6 {[%emt 0:00:17]} 6. Bb5 {[%emt 0:01:55]} Bd7 {[%emt 0:00:05]} 7. O-O {[%emt 0:01:12]} cxd4 {[%emt 0:01:21]} 8. Nxd4 {[%emt 0:01:22]} a6 {[%emt 0:01:21]} 9. Be2 {[%emt 0:01:32]} Bd6 {[%emt 0:01:36]} 10. Nd2 {[%emt 0:01:40]} Nxd4 {[%emt 0:00:24]} 11. exd4 {[%emt 0:01:08]} Rc8 {[%emt 0:00:48]} 12. c4 {[%emt 0:01:11]} dxc4 {[%emt 0:00:36]} 13. Nxc4 {[%emt 0:01:42]} Bb8 {[%emt 0:02:44]} 14. Ba3 {[%emt 0:00:50]} b5 {[%emt 0:00:43]} 15. Nd6+ {[%emt 0:02:05]} Bxd6 {[%emt 0:00:32]} 16. Bxd6 {[%emt 0:00:22]} Ne4 {[%emt 0:01:24]} 17. Bb4 {[%emt 0:07:23]} a5 {[%emt 0:00:27]} 18. Bd2 {[%emt 0:00:10]} Bc6 {[%emt 0:03:42]} 19. Be1 {[%emt 0:01:51]} b4 {[%emt 0:02:49]} 20. Rc1 {[%emt 0:02:26]} Qb6 {[%emt 0:01:41]} 21. f3 {[%emt 0:03:36]} Nf6 {[%emt 0:00:22]} 22. Bf2 {[%emt 0:00:26]} Nd5 {[%emt 0:00:33]} 23. Bc4 {[%emt 0:02:11]} O-O {[%emt 0:01:02]} 24. Qd2 {[%emt 0:03:28]} Rfd8 {[%emt 0:02:31]} 25. Rc2 {[%emt 0:01:25]} Rc7 {[%emt 0:00:52]} 26. Rfc1 {[%emt 0:00:49]} Bb7 {[%emt 0:04:46]} 27. Bg3 {[%emt 0:14:36]} Rcc8 {[%emt 0:03:44]} 28. Bf2 {[%emt 0:02:08]} h6 {[%emt 0:04:14]} 29. Re1 {[%emt 0:01:41]} Nc3 {[%emt 0:02:55]} 30. Re5 {[%emt 0:03:12]} Rd6 {[%emt 0:03:55]} 31. Qe1 {[%emt 0:02:47]} Rcd8 {[%emt 0:05:14]} 32. Rd2 {[%emt 0:04:59]} Bc8 {[%emt 0:01:26]} 33. Be3 {[%emt 0:02:57]} Qc7 {[%emt 0:07:36]} 34. Qg3 {[%emt 0:00:53]} Kf8 {[%emt 0:01:17]} 35. Rc5 {[%emt 0:02:43]} Qa7 {[%emt 0:04:03]} 36. Rxc8 {[%emt 0:04:05]} 1-0